Cogmind - Beta 16 @@@ ROGUE MODE // 2025.10.27 @ 04:44:15 Player: Demo Result: Destroyed by as-89316 with Assembled Blade Performance ------------- Evolutions (0) 0 Regions Visited (4) 800 Robots Destroyed (44) 220 Value Destroyed (794) 794 Prototype IDs (24) 480 Alien Tech Used (0) 0 Bonus (300) 300 TOTAL SCORE: 2594 Bonus ------- Aligned with FarCom 300 Cogmind --------- Core Integrity 0/250 Matter 280/300 Energy 225/240 System Corruption 0% Temperature Warm (103) Movement Treading (480) Ox4 Location -9/Mines Parts ------- > --- POWER (1) -------- Nuclear Core > --- PROPULSION (2) --- Light Treads Wheel > --- UTILITY (2) ------ Huge Storage Unit Chronowheel > --- WEAPON (2) ------- EM Pulse Gun Beam Rifle > --- INVENTORY (25) --- Improved Ion Engine Light Treads Improved Treads Compact Wheel Compact Wheel Scrap Suit High-capacity Battery (250) Large Matter Pod (150) Transport Network Coupler Utility Shielding Reflective Plating Hacking Suite Hacking Suite Trap Reconfigurator Particle Cannon YOLO Cannon Mini Grenade Launcher Mini Grenade Launcher Datajack Plasma Cutter Stasis Trap (100%) Stasis Trap (100%) Stasis Trap (100%) Peak State ------------ > --- POWER ------------ (None) > --- PROPULSION ------- Wheel Compact Wheel > --- UTILITY ---------- Huge Storage Unit > --- WEAPON ----------- YOLO Cannon > --- INVENTORY -------- Nuclear Core Light Treads Light Treads Light Treads Compact Wheel Large Battery Large Matter Pod Transport Network Coupler Targeting Computer Utility Shielding Reflective Plating Hacking Suite Hacking Suite Trap Reconfigurator Chronowheel EM Pulse Gun Beam Rifle Mini Grenade Launcher Mini Grenade Launcher Datajack Stasis Trap Stasis Trap Stasis Trap [Rating: 28] Favorites ----------- Power Light Ion Engine Engine Light Ion Engine Power Core Nuclear Core Propulsion Light Treads Treads Light Treads Wheel Compact Wheel Utility Huge Storage Unit Device Heat Sink Storage Huge Storage Unit Protection Light Armor Plating Weapon Improved EM Shotgun Energy Gun Improved EM Shotgun Energy Cannon YOLO Cannon Ballistic Gun Assault Rifle Launcher Mini Grenade Launcher Build | -11 -10 -10 -10 -9 ------- Run | Yrd Mat Min Exi Min Slots Evolved . | . . . . . Power . | . . . . . Propulsion . | . . . . . Utility . | . . . . . Weapon . | . . . . . Parts Attached 34 | 8 16 2 . 8 Power 4 | . 2 1 . 1 Engine 2 | . 2 . . . Core 2 | . . 1 . 1 Reactor . | . . . . . Propulsion 11 | 4 5 . . 2 Treads 5 | 2 3 . . . Leg . | . . . . . Wheel 6 | 2 2 . . 2 Hover . | . . . . . Flight . | . . . . . Utility 7 | 2 2 1 . 2 Device 3 | 1 1 . . 1 Storage 2 | 1 1 . . . Processor . | . . . . . Hackware . | . . . . . Protection 2 | . . 1 . 1 Artifact . | . . . . . Weapon 12 | 2 7 . . 3 Energy Gun 8 | 1 6 . . 1 Energy Cannon 1 | . . . . 1 Ballistic Gun 2 | 1 1 . . . Ballistic Cannon . | . . . . . Launcher 1 | . . . . 1 Special Weapon . | . . . . . Impact Weapon . | . . . . . Slashing Weapon . | . . . . . Piercing Weapon . | . . . . . Special Melee Weapon . | . . . . . Unidentified Prototypes 1 | . 1 . . . Parts Lost 12 | . 7 1 . 4 Power 3 | . 1 1 . 1 Propulsion 2 | . 2 . . . Utility 2 | . 1 . . 1 Weapon 5 | . 3 . . 2 Highest Loss Streak 4 | . 3 1 . 4 To Critical Strikes . | . . . . . Average Backups 18 | 1 15 23 21 19 Power . | . . . 1 . Propulsion 5 | 1 6 5 4 4 Utility 5 | . 2 8 9 8 Weapon 6 | . 6 8 5 4 Tool/Special . | . . . . . Unused Backups 45 | . 13 10 4 18 Power 1 | . . . . 1 Propulsion 13 | . 6 4 . 3 Utility 17 | . 2 2 3 10 Weapon 12 | . 4 4 1 3 Tool/Special 2 | . 1 . . 1 Average Slot Usage (%) 93 | . 91 93 100 94 Engine 5 | . 10 2 . . Core 4 | . . 5 14 12 Treads 12 | . 12 14 14 9 Wheel 15 | . 15 14 14 18 Device 5 | . 10 2 . . Storage 14 | . 14 14 14 14 Protection 6 | . . 11 14 11 Energy Gun 21 | . 15 28 28 23 Ballistic Gun 5 | . 12 . . . Peak Build Rating 28 | 6 14 16 19 28 Average Rating 12 | 4 9 13 17 18 On Entrance 10 | . 6 13 16 19 Avg Prop Armor Cover (%) 11 | 20 12 10 10 9 Naked Turns . | . . . . . Heaviest Build 96 | 9 90 96 96 96 Greatest Support 40 | 16 40 16 16 26 Greatest Overweight (x) 9 | . 8 5 5 9 Average Overweight (x) 5 | . 6 5 5 5 Largest Inventory Capacity 25 | 8 25 25 25 25 Average Capacity 24 | 7 24 25 25 25 Most Carried 25 | 7 25 25 25 25 Average Carried 19 | 2 15 24 24 24 Final Capacity 25 | 8 25 25 25 25 Final Carried 25 | 7 25 25 25 25 Class Distribution -------------------- 93% | Mutant 6% | Scavenger-Mutant Dominant Class ---------------- Mutant | -10/Materials Mutant | -10/Mines Mutant | -10/Exiles Mutant | -9/Mines Resources | -11 -10 -10 -10 -9 ----------- Run | Yrd Mat Min Exi Min Matter Collected 978 | 350 382 116 . 130 Remotely . | . . . . . Salvage Created 1478 | 185 1093 24 . 176 Parts 98 | 12 76 3 . 7 Haulers Intercepted 2 | . 2 . . . Recyclers Shooed 3 | . 3 . . . Parts Field Recycled . | . . . . . Retrieved Matter . | . . . . . Parts Self-Destructed . | . . . . . Prevented . | . . . . . Parts Restored . | . . . . . Kills | -11 -10 -10 -10 -9 ------- Run | Yrd Mat Min Exi Min Combat Hostiles Destroyed 27 | . 17 . . 10 Guns 18 | . 14 . . 4 Cannons 2 | . . . . 2 AOE 7 | . 3 . . 4 Classes Destroyed 12 | 2 8 . . 2 Worker 4 | . 4 . . . Builder 3 | . 3 . . . Tunneler 6 | 5 . 1 . . Hauler 2 | . 2 . . . Recycler 4 | 1 3 . . . Mechanic 1 | . 1 . . . Operator 2 | . 2 . . . Watcher 1 | . 1 . . . Swarmer 6 | . 6 . . . Grunt 13 | . 11 . . 2 Demolisher 2 | . . . . 2 Assembled 6 | . . . . 6 Best Kill Streak 5 | 4 5 1 . 5 Combat Bots Only 5 | . 3 . . 5 Max Kills in Single Turn 2 | 2 2 1 . 1 Gunslinging 1 | . 1 . . . Exploded 2 | . 2 . . 1 Melee . | . . . . . Uniques/NPCs Destroyed . | . . . . . Combat | -11 -10 -10 -10 -9 -------- Run | Yrd Mat Min Exi Min Hostile Shots Fired 153 | . 91 2 . 60 Missed 40 | . 25 . . 15 Hits 113 | . 66 2 . 45 Melee 8 | . . . . 8 Projectile 105 | . 66 2 . 37 AOE 4 | . . . . 4 Critical Strikes 6 | . 3 1 . 2 Part Disruptions 1 | . . . . 1 Damage Taken 1714 | . 740 41 . 933 Core 259 | . 129 . . 130 Absorbed by Shields . | . . . . . Ignored by Resistances 3 | . . . . 3 Core Remaining (%) 100 | 100 . . . . Volleys Fired 122 | 10 85 1 . 26 Largest 2 | 2 2 2 . 2 Hottest 101 | 60 101 101 . 101 Shots Fired 221 | 20 159 2 . 40 Gun 214 | 20 159 2 . 33 Cannon 2 | . . . . 2 Launcher 5 | . . . . 5 Special . | . . . . . Kinetic 87 | 10 77 . . . Thermal 75 | 10 47 1 . 17 Explosive 5 | . . . . 5 Electromagnetic 54 | . 35 1 . 18 Robot Hit Streak 20 | 2 20 6 . 7 Robot Miss Streak 5 | 1 5 . . 3 Penetration Max . | . . . . . Secondary Targets 3 | . 2 . . 1 Max Gunslinging Chain 1 | . 1 . . 1 Shots Hit Robots 134 | 10 99 1 . 24 Core Hits 74 | 7 48 1 . 18 Critical Kills 1 | . 1 . . . Critical Parts Destroyed 1 | . 1 . . . Critical Strikes 3 | . 2 . . 1 Burn 1 | . . . . 1 Destroy 2 | . 2 . . . Melee Attacks . | . . . . . Impact . | . . . . . Slashing . | . . . . . Piercing . | . . . . . Sneak Attacks . | . . . . . Combat Hostiles . | . . . . . Follow-up Attacks . | . . . . . Damage Inflicted 2709 | 125 1664 24 . 896 Guns 1755 | 125 1326 24 . 280 Cannons 271 | . . . . 271 Explosions 683 | . 338 . . 345 Melee . | . . . . . Ramming . | . . . . . Kinetic 669 | 59 610 . . . Thermal 1139 | 66 670 . . 403 Explosive 327 | . . . . 327 Electromagnetic 574 | . 384 24 . 166 Impact . | . . . . . Slashing . | . . . . . Piercing . | . . . . . Highest Corruption . | . . . . . Average Corruption . | . . . . . Corruption Purged . | . . . . . Corruption Blocked . | . . . . . Overload Shots . | . . . . . Overflow Damage 106 | . 104 . . 2 Projectiles . | . . . . . Explosions 106 | . 104 . . 2 Melee . | . . . . . Knockbacks . | . . . . . Impact . | . . . . . Kinetic . | . . . . . Secondary . | . . . . . Self-Inflicted Damage 113 | . 4 . . 109 Shots 5 | . 1 . . 4 Rammed . | . . . . . Targets Rammed . | . . . . . Kicked . | . . . . . Crushed . | . . . . . Highest Temperature 395 | . 395 54 . 309 Average Temperature 98 | . 60 25 . 139 Received Heat Transfer 600 | . 351 36 . 213 Siege Activations . | . . . . . Martial Activations . | . . . . . Shielding Activations . | . . . . . Robots Disrupted . | . . . . . Combat Hostiles . | . . . . . Robots Corrupted . | . . . . . Combat Hostiles . | . . . . . Parts Fried 2 | . 1 . . 1 Impact Corruptions . | . . . . . Robots Melted . | . . . . . Combat Hostiles . | . . . . . Parts Melted 1 | . 1 . . . Heat Transferred 1822 | 150 1062 . . 610 Parts Sabotaged . | . . . . . Parts Stolen . | . . . . . Parts Stripped . | . . . . . Power Chain Reactions 3 | . 3 . . . Alert | -11 -10 -10 -10 -9 ------- Run | Yrd Mat Min Exi Min Maximum Alert Level . | . . . . . Low Security (%) 100 | 100 100 100 . 100 Level 1 . | . . . . . Level 2 . | . . . . . Level 3 . | . . . . . Level 4 . | . . . . . Level 5 . | . . . . . High Security . | . . . . . Max Security . | . . . . . Peak Influence 195 | 15 195 61 . 59 Initial 61 | . . 61 . . Average 33 | 4 56 4 . 20 Influence Increases 745 | 30 580 5 . 130 Destroy 0b10 Robot/C 420 | . 340 . . 80 Destroy 0b10 Robot/NC 115 | 30 80 5 . . Destroy Leader 86 | . 66 . . 20 Disable Machine 15 | . 15 . . . Destroy Structure 64 | . 34 . . 30 Lose Combat Pursuer 45 | . 45 . . . Influence Decreases 745 | 30 423 162 . 130 Entered New Map 96 | . . 96 . . Time Decay 539 | 30 353 66 . 90 Lost Part 110 | . 70 . . 40 Squads Dispatched 5 | . 4 1 . . Investigation 3 | . 2 1 . . Extermination . | . . . . . Reinforcement 2 | . 2 . . . Assault . | . . . . . Garrison . | . . . . . Intercept . | . . . . . Searches Triggered . | . . . . . Construction Impeded . | . . . . . Haulers Reinforced . | . . . . . Active Scanning Responses . | . . . . . Cargo Convoy Interrupts . | . . . . . Stealth | -11 -10 -10 -10 -9 --------- Run | Yrd Mat Min Exi Min Distress Signals 1 | . 1 . . . Communications Jammed . | . . . . . Distress Signals . | . . . . . Times Spotted 54 | . 30 2 . 22 Peak Tracking Total 8 | . 5 2 . 8 Tactical Retreats 2 | . 2 . . . Traps | -11 -10 -10 -10 -9 ------- Run | Yrd Mat Min Exi Min Traps Triggered . | . . . . . Indirectly . | . . . . . Trap Hack Attempts . | . . . . . Triggered . | . . . . . Disarmed . | . . . . . Reprogrammed . | . . . . . Reused . | . . . . . Traps Extracted . | . . . . . Installed . | . . . . . Triggered . | . . . . . Most Traps Carried 3 | . . 3 3 3 Machines | -11 -10 -10 -10 -9 ---------- Run | Yrd Mat Min Exi Min Machines Disabled 2 | . 2 . . . Max in Single Turn 1 | . 1 . . . Machines Repaired . | . . . . . Machines Dismantled . | . . . . . Machines Sabotaged . | . . . . . Overloaded Fab Kills . | . . . . . Hacking | -11 -10 -10 -10 -9 --------- Run | Yrd Mat Min Exi Min Machines Accessed 10 | . 4 1 5 . Terminals 3 | . 3 . . . Fabricators . | . . . . . Repair Stations . | . . . . . Recycling Units 1 | . 1 . . . Scanalyzers . | . . . . . Garrison Access . | . . . . . Total Hacks 26 | . 14 1 11 . Successful 18 | . 6 1 11 . Failed 7 | . 7 . . . Catastrophic 2 | . 2 . . . Database Lockouts 1 | . 1 . . . Manual 12 | . 11 . 1 . Terminals 10 | . 10 . . . Fabricators . | . . . . . Repair Stations . | . . . . . Recycling Units 4 | . 4 . . . Scanalyzers . | . . . . . Garrison Access . | . . . . . Terminal Hacks 14 | . 2 1 11 . Record 10 | . . . 10 . Robot Analysis 1 | . 1 . . . Open Door 1 | . . 1 . . Locate Traps 1 | . 1 . . . Proto ID Catalog 1 | . . . 1 . Fabricator Hacks . | . . . . . Repair Station Hacks . | . . . . . Recycling Unit Hacks 1 | . 1 . . . Retrieve Components 1 | . 1 . . . Scanalyzer . | . . . . . Garrison Access Hacks . | . . . . . Unauthorized Hacks 3 | . 3 . . . Terminals 1 | . 1 . . . Botnet 1 | . 1 . . . Fabricators . | . . . . . Repair Stations . | . . . . . Recycling Units 2 | . 2 . . . Monitor 1 | . 1 . . . Recyclers 1 | . 1 . . . Scanalyzers . | . . . . . Garrison Access . | . . . . . Data Cores Recovered . | . . . . . Used . | . . . . . Hacking Detections 4 | . 4 . . . Full Trace Events 3 | . 3 . . . Feedback Events . | . . . . . Feedback Blocked . | . . . . . Robot Schematics Acquired . | . . . . . Robots Built . | . . . . . Authchips . | . . . . . Time . | . . . . . Total Robot Build Rating . | . . . . . Part Schematics Acquired . | . . . . . Parts Built . | . . . . . Authchips . | . . . . . Time . | . . . . . Total Part Build Rating . | . . . . . Part Studies Acquired . | . . . . . Parts Repaired . | . . . . . Time . | . . . . . Parts Recycled . | . . . . . Recycled Matter . | . . . . . Retrieved Matter . | . . . . . Retrieved Components 10 | . 10 . . . Parts Scanalyzed . | . . . . . Part Schematics Acquired . | . . . . . Parts Damaged . | . . . . . Bothacking | -11 -10 -10 -10 -9 ------------ Run | Yrd Mat Min Exi Min Used RIF Installer . | . . . . . Robots Hacked . | . . . . . Non-combat . | . . . . . Combat . | . . . . . Robot Hacks Applied . | . . . . . Relay Couplers Released . | . . . . . Fabnet Peak Effective % . | . . . . . Robots Rewired . | . . . . . Allies Hacked . | . . . . . Hacks Repelled . | . . . . . Allies | -11 -10 -10 -10 -9 -------- Run | Yrd Mat Min Exi Min Total Allies . | . . . . . Largest Group . | . . . . . Highest-Rated Group . | . . . . . Highest-Rated Ally . | . . . . . Total Orders . | . . . . . Ally Attacks . | . . . . . Total Damage . | . . . . . Kills . | . . . . . Allies Corrupted . | . . . . . Allies Melted . | . . . . . Intel | -11 -10 -10 -10 -9 ------- Run | Yrd Mat Min Exi Min Active Infowar (turns) 402 | . 402 . . . Seismic 402 | . 402 . . . Robot Analysis Total 1 | . 1 . . . Derelict Logs Recovered 1 | . . . . 1 Drone Launches . | . . . . . Drone Recoveries . | . . . . . Exploration | -11 -10 -10 -10 -9 ------------- Run | Yrd Mat Min Exi Min Turns Passed 3379 | 108 1525 976 520 250 Spaces Moved 1634 | 61 646 540 295 92 Core 12 | 12 . . . . Treads 20 | . 20 . . . Legs . | . . . . . Wheels 1602 | 49 626 540 295 92 Hover . | . . . . . Flight . | . . . . . Fastest Speed 50 | 50 80 175 175 135 Average Speed 175 | 84 185 175 175 167 Slowest Speed 480 | 100 480 175 175 215 Overloaded Moves . | . . . . . Propulsion Burnouts . | . . . . . Robots Hopped . | . . . . . Potential Cave-ins 3 | . . . . 3 Cave-ins Triggered . | . . . . . Exploration Rate (%) 49 | 4 67 92 62 24 Regions Visited 4 Branch Regions 3 Pre-discovered Areas 2 | . . . 1 1 Known Exits Taken . | . . . . . Unknown Exits Taken 4 | 1 1 1 1 . Scrap Searched 3 | . . 2 . 1 Spaces Dug 10 | . . . . 10 Terrain Destroyed 88 | . 32 . . 56 Melee . | . . . . . Projectile . | . . . . . AOE 88 | . 32 . . 56 Terrain Rammed . | . . . . . Walls Destroyed . | . . . . . Machines Disabled . | . . . . . Actions | -11 -10 -10 -10 -9 --------- Run | Yrd Mat Min Exi Min Total 1936 | 91 819 575 304 147 Wait 24 | 1 16 6 1 . Move 1630 | 60 645 539 294 92 Hop . | . . . . . Pick Up 70 | 7 37 13 4 9 Fast Attach 15 | 7 5 2 . 1 Attach 11 | . 6 . . 5 Detach 1 | . . . . 1 Swap 18 | 5 7 . . 6 Drop 45 | 1 18 14 5 7 Fire 122 | 10 85 1 . 26 Melee . | . . . . . Ram . | . . . . . Kick . | . . . . . Crush . | . . . . . Escape Stasis . | . . . . . Rewire . | . . . . . Trap . | . . . . . Miscellaneous . | . . . . . Route ------- -11/Scrapyard -10/Materials (discovered 3 exits: [*Mat x2] / *Min) -10/Mines (discovered 3 exits: [*Mat x2] / *Exi) -10/Exiles -9/Mines History --------- Turn | Location | Event 3 | -11/Scrapyard | Discovered new exit (range 16) 109 | -11/Scrapyard | Entered Materials 318 | -10/Materials | Discovered new exit (range 16) 398 | -10/Materials | Central database locked down 569 | -10/Materials | Lost 3 parts (1p1n1u) 797 | -10/Materials | Discovered new exit (range 4) 801 | -10/Materials | Build established: Mutant 1150 | -10/Materials | Core integrity fell below 50% 1308 | -10/Materials | Discovered new exit (range 7) 1634 | -10/Materials | Entered Mines 1675 | -10/Mines | Discovered new exit (range 9) 1682 | -10/Mines | Received a Rocket Launcher from a helpful Derelict 1795 | -10/Mines | Discovered new exit (range 5) 1800 | -10/Mines | Joined a pair of Derelicts in attacking an 0b10 outpost 1989 | -10/Mines | Deemed a non-threat by the Exiles lab entrance 1991 | -10/Mines | Discovered new exit (range 5) 2104 | -10/Mines | Found a hidden stash of uninstalled traps 2194 | -10/Mines | Met a Derelict shopkeep closing up shop 2610 | -10/Mines | Entered Exiles 2654 | -10/Exiles | Met 8R-AWN 2682 | -10/Exiles | Met EX-HEX 2729 | -10/Exiles | Met EX-BIN 2757 | -10/Exiles | Aligned with FarCom system 2759 | -10/Exiles | Given EX-Vault access code 2854 | -10/Exiles | Opened EX-Vault 2872 | -10/Exiles | Found YOLO Cannon 2876 | -10/Exiles | Found Trap Reconfigurator 2882 | -10/Exiles | Found Chronowheel 2920 | -10/Exiles | Warned to stay clear of 0b10 Research branches 2930 | -10/Exiles | Exiles lab attacked by MAIN.C 2978 | -10/Exiles | Learned location of Zion (-6) 3056 | -10/Exiles | Discovered new exit (range 14) 3130 | -10/Exiles | Stole three prototypes: Trap Reconfigurator, Chronowheel, YOLO Cannon 3130 | -10/Exiles | Entered Mines 3131 | -9/Mines | Assembled infested the area 3223 | -9/Mines | Lost 4 parts (1p1u2w) 3247 | -9/Mines | Found DCF Scrap (12 items) 3312 | -9/Mines | Found a Scrap Suit stashed away for nefarious purposes 3322 | -9/Mines | Found Scrap Suit 3344 | -9/Mines | Core integrity fell below 20% 3356 | -9/Mines | Learned location of Storage (-8) 3371 | -9/Mines | Activated Chronowheel 3380 | -9/Mines | Destroyed by as-89316 with Assembled Blade Last Messages --------------- 03309_ as-00102 destroyed. 03312_ A message is left with an item here: "H4-X0R! I managed to smuggle one out! Take this to the hideout, the fools near Old Recycling think they can use this tech to beat 0b10 one day, and now we just have to find a way to safely deliver this to MAIN.C to get on their good side and convince them to let us into the system." 03314_ Acquired 12 matter. 03318_ Dropped Lrg. Battery. 03319_ Dropped Targeting Computer. 03322_ Acquired Scrap Suit. 03338_ as-11009 suffers critical hit (Burn). 03346_ EM Pulse Gun severed. 03349_ Acquired EM Pulse Gun. 03353_ as-11009 destroyed. 03356_ Acquired derelict log, extracted data. World map updated: -8/Storage. 03371_ Spacetime feels off. Map ----- +----------------------------------------------------+ | ?????????????????????????????????????????????????? | | ?????????????????????????????????????????????????? | | ??????????????????????????????????????????######## | | ?????????????????????????????????????????## ## | | ?????????????????????????????????????????# | | ????????????????????????????????????????## | | ???????????????????????????????????###### | | ????????????????????????????######## | | ????????????????????????????#%/ * | | ??????????????????????###???# !#### " | | ??????????? ###### ####==#??# | | ?????????? = = ##?# | | ?????????? ! = #### # | | ???????????# ###### #?### " # | | ??????????????????????##### #???## # | | ??????????????????????????## #????# | | ???????????????????????????## #???## # # | | ????????????????????????????# ##### ## # | | ???????????????????????????##! # # | | ???????????????????????????#ar # | | ??????????????????????????##% ###### ## # | | ?????????????????????????## ##????# ## # # | | ????????????????????????## ##????####### # ## | | ????????????????????????# #??????????####### | | ????????????????????????#a #????????????????# | | ????????????????????????#@ #####????????????????#" | | ????????????????????????#a #????????????????????#% | | ????????????????????????#% #????????????????????#" | | ????????????????????? #????????????????????# | | ????????????????? #####????????????????????# | | ????????????????# = ?????????????????????????? | | ????????????????# !%???????????????????????????## | | ????????????????#? ?????????????????????????????? | | ????????????????? ??????????????????????????????? | | ????????????????#????????????????????????????????? | | ?????????????????????????????????????????????????? | | ?????????????????????????????????????????????????? | | ?????????????????????????????????????????????????? | | ?????????????????????????????????????????????????? | | ?????????????????????????????????????????????????? | | ?????????????????????????????????????????????????? | | ?????????????????????????????????????????????????? | | ?????????????????????????????????????????????????? | | ?????????????????????????????????????????????????? | | ?????????????????????????????????????????????????? | | ?????????????????????????????????????????????????? | | ?????????????????????????????????????????????????? | | ?????????????????????????????????????????????????? | | ?????????????????????????????????????????????????? | | ?????????????????????????????????????????????????? | +----------------------------------------------------+ Best States ------------- Heat Dissipation 35 Energy Generation 14 Energy Capacity 240 Matter Stores 300 Matter Capacity 300 Sight Range 16 Terrain Scan Density 10 Armor Coverage 150 Resistance: TH 10 Evasion (%) 44 Recoil Reduction 2 Item Schematics ----------------- None Robot Schematics ------------------ None Fabricated ------------ Nothing Repaired ---------- Nothing Studied --------- None Alien Tech Used ----------------- None Achievements -------------- Sixth Sense Challenges ------------ None Game ------ Seed ReactivePiercingHammer Manual? 0 Play Time 00:20:58 Cumulative 331.7 hours Start 2025.10.27 @ 04:19:47 End 2025.10.27 @ 04:44:15 Sessions 1 Manual Loads 0 Difficulty Rogue Special Mode None Game No. 289 Rogue 289 Adventurer 0 Explorer 0 Win Type - Total 2 Types 1/1/0/0/0/0/0/0/0/0 Lore% 78 Gallery% 79 Achievement% 48 Wizard Run 0 Options --------- Layout 1 ASCII 0 Keyboard 0 Movement Numpad Keybinds 0 Fullscreen 1 Font 24/Smallcaps Map View 50x35 Zoom Use 0% Tactical HUD 1 Map Filters NONE Filters NONE Steam 1 RUN: 6c150481-ade9-44c8-9d8f-40aaf28379a9